bitfinex-derivatives/quotes_BTCF0:USTF0_20250506
["timestamp","ask_amount","ask_price","bid_price","bid_amount"]
[1746500901706,0.2119006,94398.0,94397.0,0.00158903]
[1746500902006,0.3639266,94398.0,94397.0,0.00158903]
[1746500902204,0.5438266,94398.0,94397.0,0.00158903]
[1746500903000,0.5438266,94398.0,94397.0,0.00358903]
[1746500903808,0.5438266,94398.0,94397.0,0.002]
[1746500904108,0.2119276,94386.0,94376.0,0.0529873]
[1746500904308,0.2119276,94386.0,94382.0,0.2119355]
[1746500904309,0.6188176,94386.0,94382.0,0.2119355]
[1746500904510,0.6188176,94386.0,94381.0,0.0529846]
[1746500904913,0.6811176,94386.0,94381.0,0.0529846]
[1746500905097,0.7991176,94386.0,94381.0,0.0529846]
[1746500905914,0.7991176,94386.0,94385.0,0.00405948]
[1746500906109,0.7991176,94386.0,94385.0,0.00605948]
[1746500906302,0.7991176,94386.0,94385.0,0.21798928]
[1746500911114,0.4383176,94386.0,94385.0,0.21798928]
[1746500911305,0.7991176,94386.0,94385.0,0.21798928]
[1746500913020,0.7991176,94386.0,94385.0,0.00605948]
[1746500919416,0.7991176,94386.0,94385.0,0.21798928]
[1746500920620,0.2119792,94365.0,94364.0,0.2649527]
[1746500920820,0.211977,94364.0,94363.0,0.0305]
[1746500921116,0.211977,94364.0,94350.0,0.36238977]
[1746500921117,0.2119792,94363.0,94361.0,0.211983]
[1746500921316,0.2769792,94363.0,94361.0,0.211983]
[1746500921518,0.2769792,94363.0,94362.0,0.21357111]
[1746500921718,0.2699792,94363.0,94362.0,0.21357111]
[1746500922118,0.3879792,94363.0,94362.0,0.21357111]
[1746500923110,0.3889792,94363.0,94362.0,0.21357111]
[1746500928722,0.3239792,94363.0,94362.0,0.21357111]
[1746500929322,0.3239792,94363.0,94362.0,0.27607111]
[1746500931124,0.2059792,94363.0,94362.0,0.27607111]
[1746500935223,0.3239792,94363.0,94362.0,0.27607111]
[1746500936122,0.2059792,94363.0,94362.0,0.27607111]
[1746500937322,0.3239792,94363.0,94362.0,0.27607111]
[1746500937524,0.3556792,94363.0,94362.0,0.27607111]
[1746500944530,0.3858792,94363.0,94362.0,0.27607111]
[1746500947128,0.2678792,94363.0,94362.0,0.27607111]
[1746500952132,0.3858792,94363.0,94362.0,0.27607111]
[1746500954733,0.3858792,94363.0,94362.0,0.24477111]
[1746500957835,0.3858792,94363.0,94362.0,0.21357111]
[1746500959533,0.3858792,94363.0,94362.0,0.00158961]
[1746500959534,0.4319692,94363.0,94362.0,0.00158961]
[1746500959735,0.4319692,94363.0,94362.0,0.21357111]
[1746500960529,0.2119949,94356.0,94355.0,0.00105982]
[1746500960738,0.2120062,94351.0,94350.0,0.36238977]
[1746500961035,0.2580962,94351.0,94350.0,0.36238977]
[1746500961421,0.2120197,94345.0,94344.0,0.0021199]
[1746500961625,0.2120197,94345.0,94341.0,0.16097684]
[1746500961626,0.2120264,94342.0,94341.0,0.16097684]
[1746500961826,0.3221964,94342.0,94341.0,0.16097684]
[1746500962235,0.4401964,94342.0,94341.0,0.16097684]
[1746500962537,0.4381964,94342.0,94341.0,0.16097684]
[1746500963127,0.5441924,94342.0,94341.0,0.16097684]
[1746500963436,0.4381964,94342.0,94341.0,0.16097684]
[1746500964135,0.4401964,94342.0,94341.0,0.16097684]
[1746500964338,0.2120399,94336.0,94335.0,0.2120413]
[1746500964529,0.2581299,94336.0,94335.0,0.2120413]
[1746500965137,0.4399299,94336.0,94335.0,0.2120413]
[1746500965637,0.4399299,94336.0,94335.0,0.2140413]
[1746500965933,0.1818,94336.0,94335.0,0.2140413]
[1746500966126,0.0638,94336.0,94335.0,0.2140413]
[1746500966437,0.2768399,94336.0,94335.0,0.2453413]
[1746500968839,0.0648,94336.0,94335.0,0.2453413]
[1746500969031,0.2768399,94336.0,94335.0,0.2453413]
[1746500972143,0.3948399,94336.0,94335.0,0.2453413]
[1746500973742,0.3948399,94336.0,94335.0,0.2140413]
[1746500975442,0.4409299,94336.0,94335.0,0.2140413]
[1746500979545,0.4409299,94336.0,94335.0,0.2455413]
[1746500980845,0.1495,94336.0,94335.0,0.2455413]
[1746500981041,0.1495,94336.0,94335.0,0.3077413]
[1746500981342,0.2435399,94336.0,94335.0,0.3077413]
[1746500981647,0.2435399,94336.0,94335.0,0.2758413]
[1746500984145,0.3615399,94336.0,94335.0,0.2758413]
[1746500986147,0.2435399,94336.0,94335.0,0.2758413]
[1746500988554,0.2735399,94336.0,94335.0,0.2758413]
[1746500990151,0.3915399,94336.0,94335.0,0.2758413]
[1746500991154,0.2735399,94336.0,94335.0,0.2758413]
[1746500992147,0.3915399,94336.0,94335.0,0.2758413]
[1746500993254,0.2735399,94336.0,94335.0,0.2758413]
[1746500994150,0.1180766,94360.0,94342.0,0.0530063]
[1746500994346,0.3300744,94360.0,94359.0,0.2119882]
[1746500994655,0.3761644,94360.0,94359.0,0.2119882]
[1746500995239,0.4941644,94360.0,94359.0,0.2119882]
[1746500995453,0.4961644,94360.0,94359.0,0.2119882]
[1746500995652,0.5001644,94360.0,94359.0,0.2119882]
[1746500995853,0.5314644,94360.0,94359.0,0.2119882]
[1746500996153,0.5294644,94360.0,94359.0,0.2119882]
[1746500996353,0.5354644,94360.0,94359.0,0.2119882]
[1746500997856,0.5668644,94360.0,94359.0,0.2119882]
[1746501000257,0.2119905,94358.0,94357.0,0.2649894]
[1746501000452,0.2580805,94358.0,94357.0,0.2649894]
[1746501000956,0.2580805,94358.0,94357.0,0.2119917]
[1746501001156,0.3760805,94358.0,94357.0,0.2119917]
[1746501001552,0.3810805,94358.0,94357.0,0.2119917]
[1746501001865,0.3840805,94358.0,94357.0,0.2119917]
[1746501010567,0.2119949,94356.0,94355.0,0.2649952]
[1746501010860,0.2580849,94356.0,94355.0,0.2649952]
[1746501011050,0.2119949,94356.0,94355.0,0.2649952]
[1746501011255,0.3905949,94356.0,94355.0,0.2649952]
[1746501011762,0.3955949,94356.0,94355.0,0.2649952]
[1746501012060,0.3985949,94356.0,94355.0,0.2649952]
[1746501012465,0.3985949,94356.0,94355.0,0.211996]
[1746501015565,0.2120264,94342.0,94341.0,0.5728243]
[1746501015863,0.2581164,94342.0,94341.0,0.3608]
[1746501016366,0.3761164,94342.0,94341.0,0.3608]
[1746501016759,0.4404164,94342.0,94341.0,0.3608]
[1746501017158,0.4424164,94342.0,94341.0,0.3608]
[1746501018058,0.4424164,94342.0,94341.0,0.5728287]
[1746501018765,0.4424164,94342.0,94341.0,0.2120287]
[1746501042776,0.3963264,94342.0,94341.0,0.2120287]
[1746501042981,0.4424164,94342.0,94341.0,0.2120287]
[1746501049784,0.3963264,94342.0,94341.0,0.2120287]
[1746501050685,0.4424164,94342.0,94341.0,0.2120287]
[1746501060793,0.3963264,94342.0,94341.0,0.2120287]
[1746501060988,0.4424164,94342.0,94341.0,0.2120287]
[1746501064795,0.0530071,94341.0,94325.0,0.00106016]
[1746501064985,0.2120579,94328.0,94325.0,0.21312436]
[1746501065183,0.3761479,94328.0,94327.0,0.2136503]
[1746501065395,0.4701479,94328.0,94327.0,0.2136503]
[1746501065983,0.4691479,94328.0,94327.0,0.2136503]
[1746501066896,0.4691479,94328.0,94327.0,0.2166503]
[1746501067799,0.4691479,94328.0,94327.0,0.0055902]
[1746501068292,0.83075321,94328.0,94327.0,0.0055902]
[1746501078196,0.83075321,94328.0,94327.0,0.2176503]
[1746501078391,0.89575321,94328.0,94327.0,0.2176503]
[1746501078591,0.72136321,94328.0,94327.0,0.2176503]
[1746501078892,0.72136321,94328.0,94327.0,0.2477503]
[1746501079088,0.72136321,94328.0,94327.0,0.2777503]
[1746501079295,0.60336321,94328.0,94327.0,0.2777503]
[1746501081002,0.57266321,94328.0,94327.0,0.2777503]
[1746501081797,0.00389561,95216.0,94327.0,0.2777503]
[1746501081798,0.2120234,94347.0,94328.0,0.0530142]
[1746501081998,0.2120244,94343.0,94342.0,0.2120242]
[1746501082398,0.03,94344.0,94343.0,0.2120242]
[1746501082706,0.2420219,94344.0,94343.0,0.2120242]
[1746501083207,0.2420219,94344.0,94343.0,0.2746242]
[1746501085010,0.2450219,94344.0,94343.0,0.2746242]
[1746501085214,0.2120354,94338.0,94334.0,0.0530107]
[1746501085511,0.2120354,94338.0,94335.0,0.0530102]
[1746501086112,0.3300354,94338.0,94337.0,0.5728376]
[1746501086509,0.118,94338.0,94337.0,0.5728376]
[1746501086706,0.118,94338.0,94337.0,0.6798416]
[1746501086903,0.118,94338.0,94337.0,0.7433416]
[1746501087099,0.119,94338.0,94337.0,0.7433416]
[1746501087308,0.001,94338.0,94337.0,0.8613416]
[1746501090218,0.001,94338.0,94337.0,0.8913416]
[1746501090519,0.001,94338.0,94337.0,0.8613416]
[1746501091520,0.001,94338.0,94337.0,0.9013416]
[1746501091715,0.001,94338.0,94337.0,0.8613416]
[1746501092114,0.001,94338.0,94337.0,0.7433416]
[1746501093124,0.001,94338.0,94337.0,0.8613416]
[1746501093612,0.001,94338.0,94337.0,0.9013416]
[1746501094120,0.001,94338.0,94337.0,0.7833416]
[1746501096219,0.001,94338.0,94337.0,0.7433416]
[1746501097314,0.001,94338.0,94337.0,0.7533416]
[1746501097518,0.001,94338.0,94337.0,0.7433416]
[1746501098726,0.0529931,94366.0,94357.0,0.2119927]
[1746501099024,0.06492,94364.0,94357.0,0.5727927]
[1746501099224,0.07689,94358.0,94357.0,0.5727927]
[1746501100015,0.2888805,94358.0,94357.0,0.6028927]
[1746501100216,0.4098805,94358.0,94357.0,0.6028927]
[1746501100524,0.1568,94358.0,94357.0,0.6028927]
[1746501100716,0.3687905,94358.0,94357.0,0.6028927]
[1746501101524,0.3687905,94358.0,94357.0,0.61333947]
[1746501115731,0.4148805,94358.0,94357.0,0.61333947]
[1746501120538,0.4148805,94358.0,94357.0,0.58323947]
[1746501124645,0.4476805,94358.0,94357.0,0.58323947]
[1746501128748,0.4476805,94358.0,94357.0,0.22243947]
[1746501138755,0.23569,94358.0,94357.0,0.22243947]
[1746501138946,0.4476805,94358.0,94357.0,0.22243947]
[1746501141358,0.4476805,94358.0,94357.0,0.58323947]
[1746501144759,0.4476805,94358.0,94357.0,0.22243947]
[1746501144954,0.4476805,94358.0,94357.0,0.58323947]
[1746501146955,0.4476805,94358.0,94357.0,0.22243947]
[1746501147152,0.4476805,94358.0,94357.0,0.58323947]
[1746501147762,0.4476805,94358.0,94357.0,0.22243947]
[1746501148158,0.126,94358.0,94357.0,0.58323947]
[1746501148360,0.305566,94369.0,94368.0,0.211968]
[1746501148754,0.351656,94369.0,94368.0,0.211968]
[1746501149159,0.469656,94369.0,94368.0,0.211968]
[1746501149867,0.483656,94369.0,94368.0,0.211968]
[1746501153879,0.194,94369.0,94368.0,0.211968]
[1746501154484,0.194,94369.0,94368.0,0.244368]
[1746501155178,0.076,94369.0,94368.0,0.244368]
[1746501160375,0.07,94369.0,94368.0,0.244368]
[1746501160886,0.064,94369.0,94368.0,0.244368]
[1746501161076,0.183,94369.0,94368.0,0.244368]
[1746501161587,0.184,94369.0,94368.0,0.244368]
[1746501161886,0.185,94369.0,94368.0,0.244368]
[1746501163181,0.067,94369.0,94368.0,0.244368]
[1746501165184,0.067,94369.0,94368.0,0.254368]
[1746501166277,0.067,94369.0,94368.0,0.244368]
[1746501167091,0.185,94369.0,94368.0,0.244368]
[1746501170492,0.185,94369.0,94368.0,0.605168]
[1746501173193,0.067,94369.0,94368.0,0.605168]
[1746501174086,0.185,94369.0,94368.0,0.605168]
[1746501183105,0.067,94369.0,94368.0,0.605168]
[1746501183292,0.0985,94369.0,94368.0,0.605168]
[1746501184105,0.2165,94369.0,94368.0,0.605168]
[1746501187111,0.2165,94369.0,94368.0,0.625168]
[1746501189310,0.2165,94369.0,94368.0,0.605168]
[1746501191000,0.26259,94369.0,94368.0,0.572768]
[1746501191200,0.4745557,94369.0,94368.0,0.572768]
[1746501191396,0.2119905,94359.0,94358.0,0.0529975]
[1746501191600,0.2119905,94359.0,94356.0,0.3608]
[1746501191601,0.2119927,94357.0,94356.0,0.3608]
[1746501191801,0.2580827,94357.0,94356.0,0.3608]
[1746501192002,0.2580827,94357.0,94356.0,0.5727949]
[1746501192300,0.4402827,94357.0,94356.0,0.5727949]
[1746501194209,0.4402827,94357.0,94356.0,0.5737949]
[1746501194706,0.3961927,94357.0,94356.0,0.5727949]
[1746501195012,0.4422827,94357.0,94356.0,0.5727949]
[1746501195197,0.4452827,94357.0,94356.0,0.5727949]
[1746501201715,0.4452827,94357.0,94356.0,0.2119949]
[1746501202715,0.2119994,94354.0,94353.0,0.2120008]
[1746501202917,0.2580894,94354.0,94353.0,0.2120008]
[1746501203112,0.2650239,94348.0,94347.0,0.0530037]
[1746501203321,0.04609,94345.0,94344.0,0.0530053]
[1746501204210,0.3761097,94345.0,94344.0,0.2650205]
[1746501204403,0.3761097,94345.0,94344.0,0.2660205]
[1746501204919,0.3771097,94345.0,94344.0,0.2660205]
[1746501205513,0.3761097,94345.0,94344.0,0.2660205]
[1746501205717,0.3771097,94345.0,94344.0,0.2660205]
[1746501206019,0.3771097,94345.0,94344.0,0.2650205]
[1746501206816,0.2120219,94344.0,94342.0,0.22273058]
[1746501207021,0.3217119,94344.0,94343.0,0.5728242]
[1746501207319,0.4397119,94344.0,94343.0,0.5728242]
[1746501208013,0.4407119,94344.0,94343.0,0.5728242]
[1746501211519,0.4407119,94344.0,94343.0,0.3608]
[1746501211715,0.5467079,94344.0,94343.0,0.3608]
[1746501213027,0.4407119,94344.0,94343.0,0.3608]
[1746501213629,0.4407119,94344.0,94343.0,0.5728242]
[1746501215026,0.4407119,94344.0,94343.0,0.3608]
[1746501217527,0.4407119,94344.0,94343.0,0.5728242]
[1746501217731,0.4407119,94344.0,94343.0,0.2120242]
[1746501218025,0.2120264,94342.0,94341.0,0.2427275]
[1746501218238,0.3761164,94342.0,94341.0,0.2427275]
[1746501220336,0.3761164,94342.0,94341.0,0.2437275]
[1746501222341,0.3761164,94342.0,94341.0,0.0317]
[1746501223739,0.3761164,94342.0,94341.0,0.2437287]
[1746501226847,0.3761164,94342.0,94341.0,0.0317]
[1746501228936,0.3761164,94342.0,94341.0,0.001]
[1746501231039,0.4409964,94342.0,94341.0,0.001]
[1746501231638,0.80260171,94342.0,94341.0,0.001]
[1746501233438,1.16340171,94342.0,94341.0,0.001]
[1746501235744,0.80260171,94342.0,94341.0,0.001]
[1746501235934,1.16340171,94342.0,94341.0,0.001]
[1746501257555,1.09852171,94342.0,94341.0,0.001]
[1746501265458,0.2120579,94328.0,94327.0,0.0015902]
[1746501265757,0.2120579,94328.0,94325.0,0.00106016]
[1746501265758,0.2120624,94326.0,94325.0,0.00106016]
[1746501265963,0.2120624,94326.0,94316.0,0.16097684]
[1746501265964,0.2120804,94318.0,94316.0,0.16097684]
[1746501266170,0.2120826,94317.0,94316.0,0.16097684]
[1746501266460,0.2909726,94317.0,94316.0,0.16097684]
[1746501266661,0.65257791,94317.0,94316.0,0.16097684]
[1746501266861,0.68377791,94317.0,94316.0,0.16097684]
[1746501267264,0.80177791,94317.0,94316.0,0.16097684]
[1746501268352,0.79777791,94317.0,94316.0,0.16097684]
[1746501268660,0.79477791,94317.0,94316.0,0.16097684]
[1746501268861,0.79477791,94317.0,94316.0,0.16297684]
[1746501269367,0.79477791,94317.0,94316.0,0.16397684]
[1746501270772,0.79477791,94317.0,94316.0,0.003]
[1746501271654,0.82487791,94317.0,94316.0,0.003]
[1746501278771,1.18567791,94317.0,94316.0,0.003]
[1746501279074,0.82487791,94317.0,94316.0,0.003]
[1746501279258,1.18567791,94317.0,94316.0,0.003]
[1746501280173,0.82487791,94317.0,94316.0,0.003]
[1746501280473,1.18567791,94317.0,94316.0,0.003]
[1746501284776,0.82487791,94317.0,94316.0,0.003]
[1746501284973,1.18567791,94317.0,94316.0,0.003]
[1746501288475,1.13958791,94317.0,94316.0,0.003]
[1746501288670,0.68468791,94317.0,94316.0,0.2150849]
[1746501288870,1.04548791,94317.0,94316.0,0.2150849]
[1746501289070,0.92748791,94317.0,94316.0,0.2150849]
[1746501289578,0.92748791,94317.0,94316.0,0.2454849]
[1746501292471,0.56668791,94317.0,94316.0,0.2454849]
[1746501292675,0.92748791,94317.0,94316.0,0.2454849]
[1746501294683,0.5658826,94317.0,94316.0,0.2454849]
[1746501300378,0.2050826,94317.0,94316.0,0.2454849]
[1746501300777,0.2120771,94320.0,94319.0,0.2120759]
[1746501302483,0.2441771,94320.0,94319.0,0.2120759]
[1746501302874,0.2120771,94320.0,94319.0,0.2120759]
[1746501303282,0.2130771,94320.0,94319.0,0.2120759]
[1746501303683,0.2431771,94320.0,94319.0,0.2120759]
[1746501308877,0.2739771,94320.0,94319.0,0.2120759]
[1746501312088,0.3919771,94320.0,94319.0,0.2120759]
[1746501313283,0.2739771,94320.0,94319.0,0.2120759]
[1746501313483,0.2739771,94320.0,94319.0,0.2447759]
[1746501318391,0.0619,94320.0,94319.0,0.2447759]
[1746501318587,0.001,94320.0,94319.0,0.3507999]
[1746501318786,0.001,94320.0,94319.0,0.3808999]
[1746501319185,0.001,94320.0,94319.0,0.4988999]
[1746501319487,0.0329,94326.0,94325.0,0.2120646]
[1746501320089,0.0329,94326.0,94325.0,0.2740646]
[1746501320290,0.2120513,94331.0,94330.0,0.2120534]
[1746501320492,0.2120513,94331.0,94330.0,0.22257432]
[1746501321287,0.2732466,94333.0,94332.0,0.2120489]
[1746501322190,0.0530009,94353.0,94344.0,0.2120219]
[1746501322390,0.2135197,94345.0,94344.0,0.2120219]
[1746501322597,0.0015,94345.0,94344.0,0.2120219]
[1746501323093,0.2135197,94345.0,94344.0,0.2120219]
[1746501323895,0.2809197,94345.0,94344.0,0.2120219]
[1746501324491,0.2869197,94345.0,94344.0,0.2120219]
[1746501327502,0.0749,94345.0,94344.0,0.2120219]
[1746501329602,0.0669,94345.0,94344.0,0.2120219]
[1746501329790,0.2829197,94345.0,94344.0,0.2120219]
[1746501330198,0.2749197,94345.0,94344.0,0.2120219]
[1746501330397,0.2829197,94345.0,94344.0,0.2120219]
[1746501333807,0.3290097,94345.0,94340.0,0.0530072]
[1746501333998,0.2650632,94333.0,94332.0,0.21204]
[1746501334199,0.2581411,94331.0,94330.0,0.01052092]
[1746501334399,0.2581411,94331.0,94330.0,0.2120534]
[1746501334809,0.2892411,94331.0,94330.0,0.2120534]
[1746501335103,0.4072411,94331.0,94330.0,0.2120534]
[1746501335293,0.4403411,94331.0,94330.0,0.2120534]
[1746501335493,0.4403411,94331.0,94326.0,0.0530155]
[1746501335494,0.2120624,94326.0,94308.0,0.21400234]
[1746501335704,0.2581524,94326.0,94311.0,0.0832235]
[1746501335904,0.2581524,94326.0,94318.0,0.2120788]
[1746501336106,0.2581524,94326.0,94321.0,0.2120726]
[1746501336308,0.4403524,94326.0,94315.0,0.3608]
[1746501336503,0.4403524,94326.0,94325.0,0.5728646]
[1746501337508,0.4413524,94326.0,94325.0,0.5728646]
[1746501339110,0.23129,94326.0,94325.0,0.5728646]
[1746501339302,0.23129,94326.0,94325.0,0.5928646]
[1746501340021,0.23129,94326.0,94325.0,0.6254646]
[1746501340222,0.11329,94326.0,94325.0,0.6254646]
[1746501344425,0.11329,94326.0,94325.0,0.2646646]
[1746501347528,0.11329,94326.0,94325.0,0.2446646]
[1746501354537,0.11329,94326.0,94325.0,0.2646646]
[1746501357130,0.23129,94326.0,94325.0,0.2646646]
[1746501358134,0.11329,94326.0,94325.0,0.2646646]
[1746501359239,0.23129,94326.0,94325.0,0.2646646]
[1746501360234,0.11329,94326.0,94325.0,0.2646646]
[1746501361242,0.3253524,94326.0,94325.0,0.2646646]
[1746501361433,0.11329,94326.0,94325.0,0.2646646]
[1746501361945,0.3253524,94326.0,94325.0,0.2646646]
[1746501362140,0.4433524,94326.0,94325.0,0.2646646]
[1746501363745,0.23129,94326.0,94325.0,0.2646646]
[1746501370245,0.11329,94326.0,94325.0,0.2646646]
[1746501370551,0.11329,94326.0,94324.0,0.2120652]
[1746501370552,0.2650857,94325.0,94324.0,0.2120652]
[1746501370748,0.3111757,94325.0,94324.0,0.2120652]
[1746501370950,0.3741757,94325.0,94324.0,0.2120652]
[1746501371146,0.4921757,94325.0,94324.0,0.2120652]
[1746501371742,0.4951757,94325.0,94324.0,0.2120652]
[1746501372047,0.2120759,94321.0,94320.0,0.212075]
[1746501372444,0.2750759,94321.0,94320.0,0.212075]
[1746501373350,0.3930759,94321.0,94320.0,0.212075]
[1746501374346,0.3940759,94321.0,94320.0,0.212075]
[1746501375448,0.2120964,94314.0,94313.0,0.2651054]
[1746501375844,0.2581864,94314.0,94313.0,0.2651054]
[1746501376349,0.3761864,94314.0,94313.0,0.2651054]
[1746501376952,0.3761864,94314.0,94313.0,0.2661054]
[1746501377255,0.4292091,94314.0,94313.0,0.2661054]
[1746501377455,0.4292091,94314.0,94313.0,0.2671054]
[1746501383263,0.4914091,94314.0,94313.0,0.2671054]
[1746501385156,0.4914091,94314.0,94313.0,0.214083]
[1746501385762,0.4914091,94314.0,94313.0,0.002]
[1746501389064,0.5974371,94314.0,94313.0,0.002]
[1746501390263,0.95904241,94314.0,94313.0,0.002]
[1746501390566,0.2121186,94301.0,94300.0,0.3121196]
[1746501390769,0.6190086,94301.0,94300.0,0.3121196]
[1746501391161,0.7370086,94301.0,94300.0,0.3121196]
[1746501391361,0.8007086,94301.0,94300.0,0.3121196]
[1746501391668,0.8007086,94301.0,94300.0,0.3151196]
[1746501391966,0.8007086,94301.0,94300.0,0.3191196]
[1746501399673,0.8007086,94301.0,94300.0,0.3191208]
[1746501400371,0.8007086,94301.0,94300.0,0.107]
[1746501400771,0.8007086,94301.0,94300.0,0.3191208]
[1746501403275,0.1494,94301.0,94300.0,0.3191208]
[1746501403480,0.118,94301.0,94300.0,0.3191208]
[1746501403668,0.118,94301.0,94300.0,0.4319208]
[1746501404069,0.118,94301.0,94300.0,0.5719208]
[1746501404273,0.2121121,94304.0,94303.0,0.2651376]
[1746501404465,0.2121121,94304.0,94303.0,0.3298376]
[1746501404666,0.36160531,94307.0,94306.0,0.2121073]
[1746501405070,0.57371041,94307.0,94306.0,0.2121073]
[1746501405569,0.2121051,94307.0,94306.0,0.2121073]
[1746501406966,0.2121051,94307.0,94306.0,0.2141073]
[1746501407169,0.2442051,94307.0,94306.0,0.2461073]
[1746501407470,0.2442051,94307.0,94306.0,0.2481073]
[1746501410076,0.0321,94307.0,94306.0,0.2481073]
[1746501410375,0.0317,94311.0,94310.0,0.2120983]
[1746501410577,0.0307,94311.0,94310.0,0.2120983]
[1746501410978,0.2427961,94311.0,94310.0,0.2120983]
[1746501411171,0.3607961,94311.0,94310.0,0.2120983]
[1746501412481,0.3607961,94311.0,94310.0,0.2130983]
[1746501412873,0.1487,94311.0,94310.0,0.2140983]
[1746501413085,0.118,94311.0,94310.0,0.5748983]
[1746501413274,0.033,94316.0,94315.0,0.2120871]
[1746501413480,0.57368811,94317.0,94316.0,0.2120849]
[1746501414881,0.36160531,94317.0,94316.0,0.2120849]
[1746501415074,0.36160531,94317.0,94316.0,0.3300849]
[1746501415277,0.36160531,94317.0,94316.0,0.34045722]
[1746501415475,0.36160531,94317.0,94316.0,0.39045722]
[1746501416280,0.36160531,94317.0,94316.0,0.27245722]
[1746501417586,0.2120791,94319.0,94318.0,0.2120804]
[1746501418074,0.033,94324.0,94323.0,0.2120691]
[1746501418279,0.0859143,94329.0,94323.0,0.2120691]
[1746501418280,0.2650579,94334.0,94333.0,0.2650533]
[1746501418493,0.3111479,94334.0,94333.0,0.2650533]
[1746501418986,0.04609,94334.0,94333.0,0.6258533]
[1746501419179,0.36160531,94337.0,94336.0,0.2120399]
[1746501420676,0.36960531,94337.0,94336.0,0.2120399]
[1746501421179,0.58164291,94337.0,94336.0,0.2120399]
[1746501423086,0.36960531,94337.0,94336.0,0.2120399]
[1746501423484,0.36960531,94337.0,94336.0,0.2426399]
[1746501423682,0.008,94337.0,94336.0,0.2426399]
[1746501424286,0.0401,94337.0,94336.0,0.2426399]
[1746501425595,0.2521376,94337.0,94336.0,0.2426399]
[1746501425889,0.0401,94337.0,94336.0,0.2426399]
[1746501426492,0.0711,94337.0,94336.0,0.2426399]
[1746501427294,0.0701,94337.0,94336.0,0.2426399]
[1746501427499,0.0530006,94353.0,94344.0,0.2120219]
[1746501427688,0.36160531,94357.0,94344.0,0.3480179]
[1746501428191,0.0322,94362.0,94355.0,0.2119972]
[1746501428398,0.0322,94362.0,94355.0,0.5827972]
[1746501428693,0.2441835,94362.0,94355.0,0.6887812]
[1746501428878,0.2119844,94361.0,94355.0,0.6887812]
[1746501429083,0.2119844,94361.0,94355.0,0.7527812]
[1746501429288,0.2119844,94361.0,94355.0,0.8707812]
[1746501429684,0.003,94356.0,94355.0,0.8707812]
[1746501430090,0.005,94356.0,94355.0,0.8707812]
[1746501431083,0.005,94356.0,94355.0,0.7527812]
[1746501434498,0.005,94356.0,94355.0,0.3919812]
[1746501434800,0.005,94356.0,94355.0,0.7527812]
[1746501437099,0.005,94356.0,94355.0,0.6467972]
[1746501438597,0.0303,94360.0,94355.0,0.540784]
[1746501438797,0.36160531,94379.0,94378.0,0.2119455]
[1746501439004,0.2119433,94379.0,94378.0,0.5727455]
[1746501439303,0.2580333,94379.0,94378.0,0.5727455]
[1746501439901,0.3524333,94379.0,94378.0,0.5727455]
[1746501440198,0.4734333,94379.0,94378.0,0.5727455]
[1746501440498,0.4764333,94379.0,94378.0,0.6056455]
[1746501440699,0.4734333,94379.0,94378.0,0.6056455]
[1746501440897,0.4764333,94379.0,94378.0,0.6056455]
[1746501441900,0.4734333,94379.0,94378.0,0.6056455]
[1746501442099,0.4734333,94379.0,94378.0,0.5727455]
[1746501442310,0.4704333,94379.0,94378.0,0.5727455]
[1746501442610,0.4724333,94379.0,94378.0,0.5727455]
[1746501448511,0.4724333,94379.0,94378.0,0.2119455]
[1746501457018,0.26049,94379.0,94378.0,0.2119455]
[1746501459018,0.2144,94379.0,94378.0,0.2426455]
[1746501459215,0.0657,94379.0,94378.0,0.2756455]
[1746501459418,0.001,94386.0,94380.0,0.0529847]
[1746501459719,0.001,94386.0,94385.0,0.5727298]
[1746501460223,0.001,94386.0,94385.0,0.6034298]
[1746501461023,0.004,94386.0,94385.0,0.6034298]
[1746501461418,0.006,94386.0,94385.0,0.6034298]
[1746501463627,0.006,94386.0,94385.0,0.2426298]
[1746501463926,0.006,94386.0,94385.0,0.6034298]
[1746501468019,0.002,94386.0,94385.0,0.6034298]
[1746501469318,0.001,94386.0,94385.0,0.6034298]
[1746501469518,0.002,94386.0,94385.0,0.6034298]
[1746501470530,0.002,94386.0,94385.0,0.2426298]
[1746501470729,0.002,94386.0,94385.0,0.6034298]
[1746501471127,0.001,94386.0,94385.0,0.6034298]
[1746501471327,0.002,94386.0,94385.0,0.6034298]
[1746501472122,0.12,94386.0,94385.0,0.6034298]
[1746501474330,0.1502,94386.0,94385.0,0.6034298]
[1746501476527,0.1512,94386.0,94385.0,0.6034298]
[1746501479134,0.1502,94386.0,94385.0,0.6034298]
[1746501480326,0.4082176,94386.0,94385.0,0.5727298]
[1746501480822,0.19629,94386.0,94385.0,0.5727298]
[1746501481335,0.4082176,94386.0,94385.0,0.5727298]
[1746501481730,0.4072176,94386.0,94385.0,0.5727298]
[1746501481943,0.4082176,94386.0,94385.0,0.5727298]
[1746501483432,0.4092176,94386.0,94385.0,0.5727298]
[1746501483632,0.4092176,94386.0,94385.0,0.3608]
[1746501483836,0.2119545,94374.0,94367.0,0.3608]
[1746501484032,0.2580445,94374.0,94373.0,0.2119568]
[1746501484332,0.3760445,94374.0,94373.0,0.2119568]
[1746501485031,0.4421445,94374.0,94373.0,0.2119568]
[1746501485235,0.4431445,94374.0,94373.0,0.2119568]
[1746501486341,0.4441445,94374.0,94373.0,0.2119568]
[1746501489540,0.1861,94374.0,94373.0,0.2119568]
[1746501489732,0.12,94374.0,94373.0,0.2119568]
[1746501490146,0.002,94374.0,94373.0,0.2119568]
[1746501490440,0.002,94374.0,94373.0,0.2763568]
[1746501492042,0.002,94374.0,94373.0,0.2963568]
[1746501492345,0.002,94374.0,94373.0,0.2763568]
[1746501494343,0.12,94374.0,94373.0,0.2763568]
[1746501496238,0.002,94374.0,94373.0,0.2763568]
[1746501496433,0.0654,94374.0,94373.0,0.2763568]
[1746501497048,0.0644,94374.0,94373.0,0.2763568]
[1746501497255,0.0644,94374.0,94373.0,0.6371568]
[1746501497438,0.0634,94374.0,94373.0,0.6371568]
[1746501497842,0.0644,94374.0,94373.0,0.6371568]
[1746501498341,0.1824,94374.0,94373.0,0.6371568]
[1746501498744,0.1824,94374.0,94373.0,0.6055568]
[1746501503146,0.3943545,94374.0,94373.0,0.6055568]
[1746501503345,0.1824,94374.0,94373.0,0.6055568]
[1746501504050,0.4404445,94374.0,94373.0,0.6055568]
[1746501504249,0.4404445,94374.0,94373.0,0.5727568]
[1746501515459,0.4404445,94374.0,94373.0,0.2119568]
[1746501521353,0.22849,94374.0,94373.0,0.2119568]
[1746501524464,0.22849,94374.0,94373.0,0.5727568]
[1746501527270,0.22849,94374.0,94373.0,0.2119568]
[1746501527464,0.22849,94374.0,94373.0,0.5727568]